bitfinex-derivatives/quotes_SOLF0:USTF0_20250323
["timestamp","ask_amount","ask_price","bid_price","bid_amount"]
[1742722972151,21.43801375,131.36,131.35,0.0558102]
[1742722974160,7.6153,131.34,131.3,251.2]
[1742722974358,2.69807192,131.33,131.3,251.2]
[1742722974564,2.69807192,131.32,131.3,277.7]
[1742722974767,16.04400172,131.34,131.31,7.6166]
[1742722974965,10.31295692,131.33,131.3,277.7]
[1742722975167,2.69715692,131.32,131.3,277.7]
[1742722975464,2.69715692,131.31,131.3,277.75247193]
[1742722975862,2.69715692,131.31,131.3,285.36967193]
[1742722976459,2.69715692,131.31,131.3,285.38967193]
[1742722976961,2.69623298,131.31,131.3,285.38967193]
[1742722977365,2.69528562,131.31,131.3,285.38967193]
[1742722979065,2.69528562,131.31,131.3,258.86967193]
[1742722979767,2.69528562,131.31,131.3,251.25247193]
[1742722980358,2.69528562,131.31,131.3,258.86997193]
[1742722980558,2.69528562,131.31,131.3,267.29867365]
[1742722981571,0.05027688,131.33,131.32,7.6163]
[1742722982571,2.74303375,131.33,131.32,7.6163]
[1742722983178,2.743047,131.33,131.32,7.6163]
[1742722984081,2.743047,131.33,131.32,34.1363]
[1742722985982,2.743047,131.33,131.32,42.56500172]
[1742722989183,2.74314868,131.33,131.32,42.56500172]
[1742722989584,0.05027688,131.33,131.32,42.56500172]
[1742722989882,2.74322765,131.33,131.32,42.56500172]
[1742722991375,2.74320168,131.33,131.32,42.56500172]
[1742722992480,2.74320168,131.33,131.32,26.52]
[1742722992875,2.74320168,131.33,131.32,34.1363]
[1742722999887,2.74076836,131.33,131.32,34.1363]
[1742723000882,2.74076836,131.33,131.32,26.52]
[1742723001381,2.74076836,131.33,131.3,277.77247193]
[1742723001587,2.69049148,131.32,131.3,285.38957193]
[1742723001885,2.69049148,131.31,131.3,277.77247193]
[1742723002191,2.69049148,131.31,131.3,285.38997193]
[1742723002386,2.69056681,131.31,131.3,285.38997193]
[1742723002589,2.69056681,131.31,131.3,251.25247193]
[1742723003686,2.68974278,131.31,131.3,251.25247193]
[1742723004093,10.30664278,131.31,131.3,0.05247193]
[1742723004297,18.73532296,131.31,131.3,0.05247193]
[1742723006194,11.11842296,131.31,131.3,0.05247193]
[1742723008196,2.68972124,131.31,131.3,0.05247193]
[1742723008591,2.68769432,131.31,131.3,0.05247193]
[1742723011400,2.68740496,131.31,131.3,0.05247193]
[1742723012904,2.68713455,131.31,131.3,0.05247193]
[1742723014999,16.04520172,131.32,131.3,0.05247193]
[1742723015204,2.68715811,131.31,131.3,0.05247193]
[1742723015607,2.68715566,131.31,131.3,0.05247193]
[1742723016201,11.11585738,131.31,131.3,0.05247193]
[1742723016906,2.68715566,131.31,131.3,0.05247193]
[1742723017407,2.68717878,131.31,131.3,0.05247193]
[1742723017605,2.68711484,131.31,131.3,0.05247193]
[1742723017909,2.68711484,131.31,131.3,8.48117365]
[1742723019109,2.68711484,131.31,131.3,16.09867365]
[1742723022013,0.05027688,131.33,131.31,7.6165]
[1742723022915,2.6872072,131.32,131.31,7.6165]
[1742723023213,0.05027688,131.33,131.31,7.6165]
[1742723023419,2.68708732,131.32,131.31,7.6165]
[1742723027314,2.68727926,131.32,131.31,7.6165]
[1742723028013,2.68727926,131.32,131.31,42.56520172]
[1742723029517,0.05027688,131.33,131.32,7.6163]
[1742723029716,2.73788783,131.33,131.32,7.6163]
[1742723029920,2.73788791,131.33,131.32,7.6163]
[1742723031115,0.05027688,131.33,131.32,7.6163]
[1742723031317,2.73794783,131.33,131.32,7.6163]
[1742723035724,2.73881335,131.33,131.32,7.6163]
[1742723035914,2.73881509,131.33,131.32,7.6163]
[1742723036320,0.05027688,131.33,131.32,7.6163]
[1742723036623,2.73881621,131.33,131.32,7.6163]
[1742723039125,2.7387692,131.33,131.32,7.6163]
[1742723039526,2.7387692,131.33,131.32,16.04500172]
[1742723041726,2.73858163,131.33,131.32,16.04500172]
[1742723043425,2.73858163,131.33,131.32,7.6163]
[1742723044126,2.73694696,131.33,131.32,7.6163]
[1742723044526,2.73683806,131.33,131.32,7.6163]
[1742723046022,0.05027688,131.33,131.32,7.6163]
[1742723046223,2.73673474,131.33,131.32,7.6163]
[1742723048126,2.73673474,131.33,131.32,16.04500172]
[1742723048326,2.73663785,131.33,131.32,16.04500172]
[1742723048727,2.73652111,131.33,131.32,16.04500172]
[1742723050425,0.05027688,131.33,131.32,16.04500172]
[1742723051425,2.69724011,131.36,131.35,7.6146]
[1742723051629,5.38288911,131.36,131.35,42.54330172]
[1742723052632,5.38264136,131.36,131.35,42.54330172]
[1742723055333,5.38219379,131.36,131.35,42.54330172]
[1742723055824,5.38219379,131.36,131.35,293.72330172]
[1742723056029,2.1211,131.42,131.35,286.10870172]
[1742723056231,2.1211,131.42,131.39,8.42870172]
[1742723056431,2.1211,131.42,131.39,34.92870172]
[1742723056931,2.1211,131.42,131.4,7.6114]
[1742723057130,2.173387,131.42,131.4,7.6114]
[1742723058337,2.173387,131.42,131.39,42.59096773]
[1742723061138,2.173387,131.42,131.39,34.16226601]
[1742723062633,2.173387,131.42,131.4,7.6116]
[1742723067749,2.173387,131.42,131.39,34.16236601]
[1742723070543,0.052287,131.42,131.39,34.16236601]
[1742723080656,0.052287,131.42,131.4,7.6114]
[1742723080858,0.052287,131.42,131.39,34.97896773]
[1742723081258,0.052287,131.42,131.4,7.6111]
[1742723081758,0.052287,131.42,131.41,7.6111]
[1742723082057,0.052287,131.42,131.39,34.97896773]
[1742723083259,0.052287,131.42,131.4,7.6114]
[1742723086462,0.052287,131.42,131.41,7.6111]
[1742723087861,0.052287,131.42,131.4,7.6114]
[1742723089962,0.052287,131.42,131.41,7.6111]
[1742723091063,0.052287,131.42,131.4,7.6114]
[1742723106878,7.662887,131.42,131.39,42.59096773]
[1742723107578,7.662887,131.42,131.39,34.16226601]
[1742723108575,8.48098872,131.42,131.39,26.55026601]
[1742723108879,8.42870172,131.41,131.39,26.55026601]
[1742723109077,7.6117,131.4,131.39,26.55026601]
[1742723109277,8.42870172,131.41,131.39,26.55026601]
[1742723109478,8.48098872,131.42,131.39,26.55026601]
[1742723109879,16.09178872,131.42,131.39,7.66246601]
[1742723113689,16.09178872,131.42,131.39,0.05026601]
[1742723113885,8.48098872,131.42,131.39,0.05026601]
[1742723114087,8.42870172,131.41,131.39,0.05026601]
[1742723114986,16.04040172,131.4,131.39,0.05026601]
[1742723115187,8.48098872,131.42,131.39,0.05026601]
[1742723115686,7.6113,131.41,131.39,7.66246601]
[1742723115890,8.48098872,131.42,131.39,7.66246601]
[1742723116186,16.09188872,131.42,131.39,7.66246601]
[1742723116394,16.09188872,131.42,131.39,0.05026601]
[1742723117093,7.6111,131.41,131.39,0.05026601]
[1742723125604,16.09168872,131.42,131.39,0.05026601]
[1742723128907,16.09168872,131.42,131.39,7.66246601]
[1742723131108,16.09168872,131.42,131.39,0.05026601]
[1742723131610,7.6111,131.41,131.39,0.05026601]
[1742723136511,7.6117,131.4,131.39,0.05026601]
[1742723138010,16.04000172,131.41,131.39,0.05026601]
[1742723139110,7.6113,131.41,131.39,0.05026601]
[1742723139307,16.09178872,131.42,131.39,0.05026601]
[1742723140716,0.052287,131.42,131.39,8.47896773]
[1742723140919,0.052287,131.42,131.4,34.90870172]
[1742723141216,0.052287,131.42,131.41,7.6111]
[1742723152324,8.48098872,131.42,131.39,0.05026601]
[1742723152623,8.42870172,131.4,131.39,0.05026601]
[1742723154528,16.03980172,131.41,131.39,0.05026601]
[1742723154932,7.6117,131.4,131.39,0.05026601]
[1742723157733,16.04000172,131.41,131.39,0.05026601]
[1742723161935,8.42870172,131.41,131.39,0.05026601]
[1742723163635,16.09178872,131.42,131.39,0.05026601]
[1742723167339,0.052287,131.42,131.39,0.05026601]
[1742723167533,0.052287,131.42,131.4,34.90870172]
[1742723168441,0.052287,131.42,131.41,7.6111]
[1742723176454,0.052287,131.42,131.4,34.0915]
[1742723177655,0.052287,131.42,131.41,7.6111]
[1742723179758,10.50480172,131.46,131.44,7.6092]
[1742723180055,8.42870172,131.48,131.43,34.90870172]
[1742723180454,8.42870172,131.48,131.46,7.608]
[1742723180954,8.42870172,131.48,131.46,7.66268698]
[1742723181152,8.48132892,131.48,131.46,7.66268698]
[1742723181348,8.48132892,131.48,131.46,0.05468698]
[1742723182157,16.08842892,131.48,131.46,0.05468698]
[1742723183858,8.48132892,131.48,131.46,0.05468698]
[1742723184560,16.08832892,131.48,131.46,0.05468698]
[1742723185960,0.0526272,131.48,131.46,26.53468698]
[1742723186251,0.0526272,131.48,131.46,34.14278698]
[1742723189156,0.0526272,131.48,131.46,26.53468698]
[1742723190061,0.0526272,131.48,131.46,34.14268698]
[1742723191358,0.0526272,131.48,131.46,26.53468698]
[1742723192161,7.6597272,131.48,131.46,26.53468698]
[1742723192763,7.6076,131.47,131.46,26.53468698]
[1742723206288,16.08852892,131.48,131.46,26.53468698]
[1742723206786,7.6076,131.47,131.46,26.53468698]
[1742723209288,16.08862892,131.48,131.46,26.53468698]
[1742723211188,7.6076,131.47,131.46,26.53468698]
[1742723213488,7.6076,131.47,131.46,0.05468698]
[1742723215491,16.03630172,131.47,131.46,0.05468698]
[1742723238407,16.08852892,131.48,131.46,0.05468698]
[1742723238607,7.6598272,131.48,131.46,0.05468698]
[1742723238800,0.0526272,131.48,131.46,0.05468698]
[1742723239208,0.0526272,131.48,131.46,26.53468698]
[1742723239411,0.0526272,131.48,131.47,7.6076]
[1742723242420,0.0526272,131.48,131.46,42.5712887]
[1742723243422,0.0526272,131.48,131.46,26.53468698]
[1742723244922,7.6600272,131.48,131.46,26.53468698]
[1742723245926,7.6076,131.47,131.46,26.53468698]
[1742723248029,7.6076,131.47,131.46,0.05468698]
[1742723260353,16.03630172,131.47,131.46,0.05468698]
[1742723272463,7.6098,131.44,131.41,34.0708]
[1742723272659,16.03850172,131.44,131.41,34.0708]
[1742723273352,7.61,131.43,131.4,293.52000172]
[1742723273548,7.61,131.43,131.41,0.05607557]
[1742723274458,16.0911875,131.44,131.41,7.66697557]
[1742723274759,7.66248578,131.44,131.41,7.66697557]
[1742723276763,7.61,131.43,131.41,7.66697557]
[1742723277761,7.61,131.43,131.41,0.05607557]
[1742723278864,7.61,131.43,131.41,7.66717557]
[1742723279162,7.66248578,131.44,131.41,7.66717557]
[1742723282666,7.61,131.43,131.41,7.66717557]
[1742723283367,0.05288578,131.44,131.41,0.05607557]
[1742723283770,0.05288578,131.44,131.43,7.6099]
[1742723286672,0.05288578,131.44,131.43,34.0899]
[1742723292477,7.6071,131.48,131.46,7.6082]
[1742723292976,7.6065,131.49,131.46,7.6082]
[1742723293572,7.66447593,131.49,131.46,7.65752022]
[1742723297381,0.05797593,131.49,131.46,0.04932022]
[1742723297977,7.6076,131.47,131.46,0.04932022]
[1742723300274,34.0676,131.47,131.46,0.04932022]
[1742723309278,7.6097,131.44,131.41,34.0711]
[1742723310479,7.66135647,131.44,131.41,34.12267348]
[1742723311684,7.6101,131.43,131.41,26.51157348]
[1742723312190,7.6101,131.43,131.41,0.05157348]
[1742723313993,7.66125647,131.44,131.41,0.05157348]
[1742723315496,7.66125647,131.44,131.41,7.66257348]
[1742723316803,0.05165647,131.44,131.42,7.6104]
[1742723317003,0.05165647,131.44,131.41,0.05157348]
[1742723317499,0.05165647,131.44,131.42,7.61]
[1742723319603,0.05165647,131.44,131.43,7.6099]
[1742723320907,0.05165647,131.44,131.41,0.05157348]
[1742723321602,0.05165647,131.44,131.42,7.6102]
[1742723325206,7.66105647,131.44,131.41,7.66237348]
[1742723328114,7.66105647,131.44,131.42,7.6105]
[1742723328307,0.05165647,131.44,131.42,7.6105]
[1742723330812,7.66105647,131.44,131.42,7.6105]
[1742723334015,7.6101,131.43,131.41,0.05157348]
[1742723335312,7.6105,131.42,131.41,0.05157348]
[1742723355728,7.6128,131.38,131.37,251.06]
[1742723355927,7.6128,131.38,131.35,28.5522]
[1742723356131,7.6128,131.38,131.35,26.48]
[1742723356735,7.6128,131.38,131.35,34.0944]
[1742723356931,7.66110675,131.38,131.35,34.1453174]
[1742723357239,7.6135,131.37,131.35,34.1453174]
[1742723357540,0.04830675,131.38,131.35,34.1453174]
[1742723357935,7.66140675,131.38,131.35,34.1453174]
[1742723358140,4.24192823,131.37,131.35,34.1453174]
[1742723358440,7.66140675,131.38,131.35,34.1453174]
[1742723360039,4.23961355,131.37,131.36,7.614]
[1742723366942,4.23961355,131.37,131.35,26.5309174]
[1742723367138,4.23961355,131.37,131.35,0.0509174]
[1742723367442,11.85321355,131.37,131.35,0.0509174]
[1742723367740,4.23961355,131.36,131.35,0.0509174]
[1742723369342,4.23961355,131.36,131.35,7.6655174]
[1742723378145,4.23961355,131.36,131.35,0.0509174]
[1742723378844,11.85361355,131.36,131.35,0.0509174]
[1742723379742,4.23961355,131.36,131.35,0.0509174]
[1742723396256,0.04830675,131.38,131.35,26.5309174]
[1742723396652,0.04830675,131.38,131.37,7.6134]
[1742723404959,26.48,131.44,131.36,2.0067]
[1742723405862,34.0896,131.44,131.36,2.0067]
[1742723406066,0.04845881,131.41,131.39,0.05141743]
[1742723406263,0.04845881,131.41,131.39,26.53141743]
[1742723407566,0.04845881,131.41,131.4,7.6113]
[1742723438605,26.46,131.46,131.44,7.6092]
[1742723438801,7.6078,131.47,131.44,7.6092]
[1742723440103,7.66375285,131.47,131.44,7.66046346]
[1742723444208,0.05595285,131.47,131.45,7.6086]
[1742723444901,0.05595285,131.47,131.45,34.0686]
[1742723446204,0.05595285,131.47,131.46,7.6082]
[1742723466326,2.0295,131.51,131.49,7.6063]
[1742723466516,2.0295,131.51,131.49,34.0663]
[1742723467514,2.0865511,131.51,131.49,34.1148993]
[1742723468417,2.0865511,131.51,131.49,26.5085993]
[1742723469623,7.6059,131.5,131.49,26.5085993]
[1742723469822,7.6059,131.5,131.49,0.0485993]
[1742723470822,9.6920511,131.51,131.49,0.0485993]
[1742723474826,7.6059,131.5,131.49,0.0485993]
[1742723479031,9.6921511,131.51,131.49,0.0485993]
[1742723480734,2.0865511,131.51,131.49,0.0485993]
[1742723482630,2.0865511,131.51,131.49,7.6550993]
[1742723484223,2.0865511,131.51,131.49,0.0485993]
[1742723484834,9.6918511,131.51,131.49,0.0485993]
[1742723489138,28.5265511,131.51,131.44,251.0]
[1742723489340,28.5265511,131.51,131.45,26.44]
[1742723490434,28.5265511,131.51,131.47,0.05821413]
[1742723490737,7.6076,131.48,131.47,0.05821413]
[1742723492846,7.6085,131.46,131.44,277.44]
[1742723493148,26.44,131.48,131.39,250.94]
[1742723493349,7.6087,131.46,131.4,26.44]
[1742723493550,7.6087,131.46,131.42,7.6101]
[1742723493749,7.6087,131.46,131.42,26.44]
[1742723493944,0.05403544,131.45,131.43,0.05455086]
[1742723495551,0.05403544,131.45,131.43,7.66415086]
[1742723496646,0.05403544,131.45,131.44,7.6094]
[1742723497152,2.0295,131.51,131.43,0.05455086]
[1742723497449,2.0295,131.51,131.43,4.0965]
[1742723497648,2.0295,131.51,131.43,4.9285]
[1742723498253,2.0295,131.51,131.49,7.6062]
[1742723498450,2.0295,131.51,131.49,34.0462]
[1742723498650,2.08309078,131.51,131.49,34.10066147]
[1742723499251,2.08309078,131.51,131.49,26.49446147]
[1742723500651,2.08309078,131.51,131.49,34.10086147]
[1742723503959,2.08309078,131.51,131.49,26.49446147]
[1742723506865,2.08309078,131.51,131.49,34.10086147]
[1742723507765,2.08309078,131.51,131.5,7.6059]
[1742723508862,2.08309078,131.51,131.49,34.10066147]
[1742723512963,0.05359078,131.51,131.49,34.10066147]
[1742723518264,0.05359078,131.51,131.49,26.49446147]
[1742723518467,0.05359078,131.51,131.49,0.05446147]
[1742723518970,7.6059,131.5,131.49,0.05446147]
[1742723519670,7.65899078,131.51,131.49,0.05446147]
[1742723520567,0.05359078,131.51,131.49,0.05446147]
[1742723520763,0.05359078,131.51,131.49,7.66066147]
[1742723521670,7.6059,131.5,131.49,0.05446147]
[1742723523068,7.6076,131.47,131.46,277.4]
[1742723523272,7.6076,131.47,131.46,250.96]
[1742723523474,7.6076,131.47,131.44,26.44]
[1742723524074,7.6076,131.47,131.44,34.0492]
[1742723524269,7.65781861,131.47,131.44,34.10185694]
[1742723524572,0.05021861,131.47,131.44,26.49265694]
[1742723525473,0.05021861,131.47,131.45,7.6085]
[1742723527269,0.05021861,131.47,131.44,34.10175694]
[1742723528275,0.05021861,131.47,131.44,7.66175694]
[1742723528574,7.65791861,131.47,131.44,26.49265694]
[1742723528873,0.05021861,131.47,131.44,26.49265694]
[1742723529477,26.49021861,131.47,131.44,0.05265694]
[1742723530577,7.6088,131.45,131.44,0.05265694]
[1742723532681,7.6084,131.46,131.44,0.05265694]
[1742723533378,0.05021861,131.47,131.44,26.49265694]
[1742723534380,0.05021861,131.47,131.46,7.6082]
[1742723542988,2.0427,131.52,131.5,7.6057]
[1742723543190,26.44,131.54,131.5,7.6057]
[1742723543386,26.44,131.54,131.49,26.44]
[1742723543581,7.6046,131.53,131.49,34.0462]
[1742723544186,0.05365803,131.52,131.5,0.05855635]
[1742723544589,0.05365803,131.52,131.5,7.66445635]
[1742723546496,0.05365803,131.52,131.51,7.6053]
[1742723566908,0.05365803,131.52,131.5,7.66415635]
[1742723567803,0.05365803,131.52,131.5,34.10415635]
[1742723570400,0.05365803,131.52,131.51,7.6053]
[1742723571505,0.05365803,131.52,131.5,26.49855635]
[1742723572607,7.65855803,131.52,131.5,26.49855635]
[1742723579610,7.65855803,131.52,131.5,34.10445635]
[1742723579811,0.05365803,131.52,131.5,34.10445635]
[1742723581008,7.65845803,131.52,131.5,34.10445635]
[1742723584518,7.65845803,131.52,131.5,26.49855635]
[1742723587511,7.65845803,131.52,131.5,0.05855635]
[1742723590621,7.65845803,131.52,131.5,7.66435635]
[1742723592520,0.05365803,131.52,131.5,7.66435635]
[1742723597827,0.05365803,131.52,131.51,7.6053]
[1742723611241,0.05365803,131.52,131.5,7.66415635]
[1742723612343,0.05365803,131.52,131.51,7.6053]
[1742723615346,0.05365803,131.52,131.5,34.10415635]
[1742723615839,0.05365803,131.52,131.51,7.6053]
[1742723628251,0.05365803,131.52,131.5,34.10415635]
[1742723629647,0.05365803,131.52,131.5,26.49855635]
[1742723630957,0.05365803,131.52,131.5,34.10395635]
[1742723633258,7.65835803,131.52,131.5,26.49855635]
[1742723633556,7.65835803,131.52,131.5,0.05855635]
[1742723635862,7.65835803,131.52,131.5,7.66435635]
[1742723636158,0.05365803,131.52,131.5,7.66435635]
[1742723640758,7.65845803,131.52,131.5,0.05855635]
[1742723641366,7.6053,131.51,131.5,0.05855635]
[1742723642266,7.6067,131.49,131.46,277.38]
[1742723642670,7.6067,131.49,131.46,284.9879]
[1742723643465,7.66360552,131.49,131.46,285.04364418]
[1742723643853,7.66360552,131.49,131.46,258.60364418]
[1742723644054,7.66360552,131.49,131.46,285.04364418]
[1742723644965,7.66360552,131.49,131.46,258.60364418]
[1742723645166,7.6071,131.48,131.46,258.60364418]
[1742723647468,7.6071,131.48,131.46,7.66364418]
[1742723650170,7.6076,131.47,131.46,0.05574418]
[1742723650367,26.44,131.48,131.42,26.44]
[1742723650572,30.5999,131.48,131.42,26.44]
[1742723650972,7.6086,131.46,131.43,7.6099]
[1742723651470,7.609,131.45,131.42,34.0502]
[1742723651670,7.609,131.45,131.43,0.051165]
[1742723653179,7.6094,131.44,131.43,0.051165]
[1742723654575,7.609,131.45,131.43,0.051165]
[1742723659885,7.66608484,131.46,131.43,7.661065]
[1742723660187,0.05758484,131.46,131.44,26.44]
[1742723661078,0.05758484,131.46,131.45,7.6088]
[1742723661485,1.9866,131.52,131.44,26.44]
[1742723661684,9.5917,131.52,131.44,26.44]
[1742723661886,1.9866,131.52,131.44,26.44]
[1742723662479,7.6059,131.5,131.47,7.6074]
[1742723662680,0.05044981,131.49,131.47,7.66209659]
[1742723663285,0.05044981,131.49,131.47,0.05469659]
[1742723663986,7.65714981,131.49,131.47,0.05469659]
[1742723669290,7.607,131.48,131.47,0.05469659]
[1742723670492,7.65714981,131.49,131.47,0.05469659]
[1742723675093,0.05044981,131.49,131.47,0.05469659]
[1742723675499,0.05044981,131.49,131.47,26.49469659]
[1742723676599,0.05044981,131.49,131.48,7.607]
[1742723677400,0.05044981,131.49,131.47,34.10209659]
[1742723688907,0.05044981,131.49,131.48,7.607]
[1742723693797,0.05044981,131.49,131.47,34.10199659]
[1742723694107,0.05044981,131.49,131.47,26.49469659]
[1742723694708,0.05044981,131.49,131.47,34.10199659]
[1742723697909,7.65694981,131.49,131.47,34.10199659]
[1742723700314,7.65694981,131.49,131.47,26.49469659]
[1742723701316,7.607,131.48,131.47,0.05469659]
[1742723705214,7.65714981,131.49,131.47,0.05469659]
[1742723706012,0.05044981,131.49,131.47,0.05469659]
[1742723707016,0.05044981,131.49,131.48,26.44]
[1742723707217,0.05044981,131.49,131.48,34.047]
[1742723727038,0.05044981,131.49,131.48,26.44]
[1742723736251,7.65694981,131.49,131.48,26.44]
[1742723736550,7.65694981,131.49,131.47,0.05469659]
[1742723737458,7.607,131.48,131.47,0.05469659]
[1742723746363,7.65714981,131.49,131.47,0.05469659]
[1742723754273,0.05044981,131.49,131.44,250.96]
[1742723754468,2.038,131.48,131.43,26.42]
[1742723754668,28.458,131.48,131.43,26.42]
[1742723754870,7.6087,131.46,131.43,26.42]
[1742723755267,28.458,131.48,131.42,34.0302]
[1742723755568,0.05693795,131.46,131.43,0.05710629]
[1742723756473,7.6089,131.45,131.43,0.05710629]
[1742723757369,7.66543795,131.46,131.43,7.66700629]
[1742723761277,0.05693795,131.46,131.43,0.05710629]
[1742723761776,0.05693795,131.46,131.45,7.6088]
[1742723761978,0.05693795,131.46,131.45,34.0488]
[1742723763975,7.605,131.52,131.49,7.6064]
[1742723765080,7.605,131.52,131.49,7.6599493]
[1742723765081,7.65868382,131.52,131.49,7.6599493]
[1742723765977,7.6053,131.51,131.49,7.6599493]
[1742723768282,7.6053,131.51,131.49,0.0535493]
[1742723770488,7.6059,131.5,131.49,0.0535493]
[1742723771783,7.6056,131.51,131.49,0.0535493]
[1742723773189,7.6059,131.5,131.49,0.0535493]
[1742723773889,7.6056,131.51,131.49,0.0535493]
[1742723776189,7.6059,131.5,131.49,0.0535493]
[1742723776988,7.6055,131.51,131.49,0.0535493]
[1742723777987,7.65868382,131.52,131.49,0.0535493]
[1742723778187,0.05368382,131.52,131.49,0.0535493]
[1742723778389,7.6058,131.51,131.49,0.0535493]
[1742723784193,7.6059,131.5,131.49,0.0535493]
[1742723795793,7.6083,131.46,131.44,26.42]
[1742723795996,26.42,131.5,131.42,250.94]
[1742723796197,1.9758,131.49,131.43,26.42]
[1742723797103,0.05731024,131.47,131.45,0.05077823]
[1742723797304,7.6082,131.46,131.45,0.05077823]
[1742723798403,26.47731024,131.47,131.45,0.05077823]
[1742723799497,7.6082,131.46,131.45,0.05077823]
[1742723819324,9.7424,131.46,131.45,0.05077823]
[1742723821125,7.6095,131.44,131.4,34.0514]
[1742723821625,2.1342,131.46,131.41,7.611]
[1742723821820,2.1342,131.46,131.4,26.44]
[1742723822225,7.65898428,131.44,131.42,0.0574733]
[1742723824319,7.6099,131.43,131.42,0.0574733]
[1742723825025,26.48918428,131.44,131.37,277.46]
[1742723825328,26.44,131.44,131.37,277.46]
[1742723825821,7.6125,131.39,131.37,251.02]
[1742723826021,26.44,131.41,131.37,0.05054546]
[1742723826226,7.6131,131.38,131.35,28.5759]
[1742723826625,7.6131,131.38,131.35,28.63247659]
[1742723826822,0.0520474,131.4,131.35,28.63247659]
[1742723827529,7.6125,131.39,131.35,28.63247659]
[1742723827726,7.6125,131.39,131.35,36.24697659]
[1742723830631,7.6125,131.39,131.35,9.80697659]
[1742723830931,7.6639474,131.4,131.36,7.6138]
[1742723831721,0.0520474,131.4,131.35,28.63247659]
[1742723831921,28.5742,131.46,131.35,28.63247659]
[1742723832127,26.44,131.46,131.35,28.5759]
[1742723832328,26.44,131.48,131.35,28.5759]
[1742723833027,0.04984075,131.43,131.4,0.05581623]
[1742723833224,0.04984075,131.43,131.41,26.44]
[1742723833427,7.6084,131.46,131.42,7.6101]
[1742723833625,0.05803746,131.43,131.42,7.6101]
[1742723836032,0.05803746,131.43,131.41,34.10133955]
[1742723836431,0.05803746,131.43,131.41,0.05043955]
[1742723837733,0.05803746,131.43,131.42,7.6105]
[1742723840034,0.05803746,131.43,131.42,34.0505]
[1742723842237,0.05803746,131.43,131.41,0.05043955]
[1742723843534,7.6105,131.42,131.41,0.05043955]
[1742723844032,7.6,131.42,131.34,42.23738724]
[1742723844233,30.5645,131.41,131.34,42.23738724]
[1742723844435,26.44,131.4,131.34,42.23738724]
[1742723844736,7.6139,131.37,131.34,42.23738724]
[1742723844929,7.48793758,131.36,131.34,42.23738724]
[1742723845124,7.48793758,131.35,131.34,42.29386938]
[1742723846338,7.48079772,131.35,131.34,42.29386938]
[1742723847836,7.48079772,131.35,131.34,0.05648214]
[1742723848336,15.08853874,131.35,131.34,0.05648214]
[1742723851039,15.08344809,131.35,131.34,0.05648214]
[1742723853742,7.46884809,131.35,131.34,0.05648214]
[1742723854246,15.08344809,131.35,131.34,0.05648214]
[1742723855344,15.08344809,131.35,131.34,0.00400075]
[1742723862853,7.6146,131.35,131.34,0.00400075]
[1742723863055,15.05591683,131.35,131.34,0.00400075]
[1742723867159,15.05135626,131.35,131.34,0.00400075]
[1742723869157,15.05202187,131.35,131.34,0.00400075]
[1742723871862,15.05188615,131.35,131.34,0.00400075]
[1742723873865,7.43728615,131.35,131.34,0.00400075]
[1742723877269,15.05188615,131.35,131.34,0.00400075]
[1742723877570,7.6146,131.35,131.34,0.00400075]
[1742723877868,15.05256387,131.35,131.34,0.00400075]
[1742723879873,15.05772781,131.35,131.34,0.00400075]
[1742723881475,7.6159,131.33,131.3,7.6172]
[1742723881671,7.44312781,131.32,131.3,7.6172]
[1742723881868,7.44312781,131.31,131.3,7.6172]
[1742723883181,0.05601158,131.32,131.3,7.6172]
[1742723883375,7.45424098,131.31,131.3,7.6172]
[1742723889483,0.05601158,131.32,131.31,7.6169]
[1742723889784,2.84197876,131.32,131.31,7.6169]
[1742723889983,2.84198017,131.32,131.31,7.6169]
[1742723890186,0.05601158,131.32,131.31,7.6169]
[1742723890682,2.84228485,131.32,131.31,7.6169]
[1742723891579,2.84282063,131.32,131.31,7.6169]
[1742723892182,2.84282063,131.32,131.3,7.6172]
[1742723892382,0.05601158,131.32,131.3,7.6172]
[1742723892589,2.78730106,131.31,131.3,7.6172]
[1742723893378,2.78784601,131.31,131.3,7.6172]
[1742723894782,2.78854034,131.31,131.3,7.6172]
[1742723896182,0.05601158,131.32,131.31,7.6169]
[1742723896382,2.84534079,131.32,131.31,7.6169]
[1742723896785,2.845376,131.32,131.31,7.6169]
[1742723898185,0.05601158,131.32,131.31,7.6169]
[1742723898387,2.84633021,131.32,131.31,7.6169]
[1742723901689,2.84679462,131.32,131.31,7.6169]
[1742723902491,0.05601158,131.32,131.31,7.6169]